bitfinex/quotes_SOLUSD_20250217
["timestamp","ask_amount","ask_price","bid_price","bid_amount"]
[1739834252598,17.39760537,178.78,178.69,0.03787106]
[1739834252896,10.75512175,178.72,178.69,0.03787106]
[1739834256791,11.80438532,178.72,178.69,0.03787106]
[1739834258989,17.39968532,178.72,178.69,0.06787106]
[1739834259195,10.75512175,178.71,178.69,0.06787106]
[1739834259374,1.04943338,178.7,178.69,0.06787106]
[1739834259699,10.75512175,178.71,178.69,0.06787106]
[1739834259991,11.8044184,178.72,178.69,0.06787106]
[1739834261085,10.75512175,178.71,178.69,0.06787106]
[1739834261296,1.04937394,178.7,178.69,0.06787106]
[1739834262291,17.40039569,178.7,178.69,0.06787106]
[1739834262993,29.4159,178.69,178.68,2.797e-05]
[1739834263180,40.17102175,178.69,178.68,2.797e-05]
[1739834263592,12.27102175,178.69,178.68,2.797e-05]
[1739834263782,10.75512175,178.69,178.68,2.797e-05]
[1739834264175,1.04941921,178.69,178.68,2.797e-05]
[1739834265503,11.8045402,178.7,178.68,2.797e-05]
[1739834265888,1.04941845,178.7,178.68,2.797e-05]
[1739834266217,11.80451115,178.71,178.68,2.797e-05]
[1739834266385,27.9,178.72,178.68,2.797e-05]
[1739834266386,1.04929905,178.72,178.68,2.797e-05]
[1739834266589,12.27102175,178.73,178.68,10.75514972]
[1739834266590,1.04926751,178.73,178.68,10.75514972]
[1739834266902,11.80438926,178.73,178.68,2.797e-05]
[1739834268508,11.80438926,178.73,178.68,5.59652797]
[1739834269089,1.04920441,178.77,178.7,10.75512175]
[1739834269299,11.80432616,178.77,178.71,10.75512175]
[1739834270206,10.75512175,178.76,178.7,10.75512175]
[1739834270406,11.80422929,178.75,178.69,10.75512175]
[1739834270592,11.80422929,178.75,178.7,5.5959]
[1739834273805,1.04910754,178.75,178.7,10.75512175]
[1739834274283,11.80422929,178.75,178.69,10.75512175]
[1739834275518,11.80422929,178.75,178.7,10.75512175]
[1739834275519,1.04910754,178.75,178.7,10.75512175]
[1739834275809,11.80419039,178.76,178.7,10.75512175]
[1739834276311,11.86708935,178.78,178.72,10.75512175]
[1739834276478,11.86708935,178.78,178.69,19.00804853]
[1739834276479,0.063,178.78,178.73,10.75512175]
[1739834277410,10.81812175,178.78,178.72,30.75512175]
[1739834278317,0.063,178.78,178.73,5.595]
[1739834278518,10.81812175,178.78,178.73,5.595]
[1739834283005,0.063,178.78,178.73,16.35012175]
[1739834283199,0.063,178.78,178.74,10.75512175]
[1739834283400,0.063,178.78,178.76,20.0]
[1739834283589,0.063,178.78,178.77,10.75512175]
[1739834283791,0.063,178.78,178.76,30.75512175]
[1739834283993,0.063,178.78,178.75,10.75512175]
[1739834284515,0.063,178.78,178.73,19.5825]
[1739834284516,0.063,178.78,178.76,20.0]
[1739834285099,0.063,178.78,178.76,10.75512175]
[1739834285416,0.063,178.78,178.73,30.75512175]
[1739834285922,10.81812175,178.78,178.73,20.0]
[1739834286112,10.75512175,178.77,178.72,16.35032175]
[1739834286297,10.81812175,178.78,178.72,16.35032175]
[1739834286493,10.81812175,178.78,178.72,5.5952]
[1739834286909,10.81812175,178.78,178.72,16.35032175]
[1739834287108,0.063,178.78,178.73,10.75512175]
[1739834287306,0.063,178.78,178.74,10.75512175]
[1739834287514,0.063,178.78,178.76,10.75512175]
[1739834288118,0.063,178.78,178.76,30.75512175]
[1739834289017,0.063,178.78,178.76,36.34912175]
[1739834289224,0.063,178.78,178.76,30.75512175]
[1739834290009,0.063,178.78,178.75,10.75512175]
[1739834290202,0.063,178.78,178.73,24.16697028]
[1739834290594,10.81812175,178.78,178.73,24.16697028]
[1739834290796,0.063,178.78,178.73,24.16697028]
[1739834291010,0.063,178.78,178.73,29.76177028]
[1739834292620,0.063,178.78,178.74,10.75512175]
[1739834294902,0.063,178.78,178.75,5.5944]
[1739834295810,0.063,178.78,178.74,16.34972175]
[1739834296719,0.063,178.78,178.74,5.5946]
[1739834297022,10.81812175,178.78,178.73,16.35002175]
[1739834299534,10.81812175,178.78,178.73,5.5949]
[1739834302626,10.81812175,178.78,178.73,16.35002175]
[1739834303615,0.063,178.78,178.73,16.35002175]
[1739834303822,0.063,178.78,178.74,10.75512175]
[1739834304204,0.063,178.78,178.73,16.35002175]
[1739834304924,0.063,178.78,178.74,24.16697028]
[1739834305319,0.063,178.78,178.76,10.75512175]
[1739834306731,0.063,178.78,178.77,44.16697028]
[1739834308226,0.063,178.78,178.77,49.76067028]
[1739834311131,0.063,178.78,178.76,20.0]
[1739834311307,0.063,178.78,178.77,20.0]
[1739834311503,0.063,178.78,178.77,30.75512175]
[1739834312415,0.063,178.78,178.77,36.34882175]
[1739834313529,0.063,178.78,178.77,30.75512175]
[1739834314031,0.063,178.78,178.77,36.34882175]
[1739834314911,0.063,178.78,178.77,30.75512175]
[1739834315106,0.063,178.78,178.77,20.0]
[1739834316436,0.063,178.78,178.77,25.5937]
[1739834322849,0.063,178.78,178.77,39.00554853]
[1739834323037,0.063,178.78,178.77,49.76067028]
[1739834332756,0.063,178.78,178.77,50.18970776]
[1739834332959,0.063,178.78,178.77,57.84790776]
[1739834333258,110.9,178.88,178.81,20.0]
[1739834333438,4.18,178.87,178.82,10.75512175]
[1739834333642,94.80344507,178.88,178.82,10.75512175]
[1739834333841,93.75512175,178.88,178.82,10.75512175]
[1739834334661,93.75512175,178.88,178.82,16.34702175]
[1739834338959,93.75512175,178.88,178.83,13.41184853]
[1739834339466,38.65512175,178.9,178.84,10.75512175]
[1739834339671,10.75512175,178.9,178.84,10.75512175]
[1739834339855,10.75512175,178.89,178.84,10.75512175]
[1739834340873,10.75512175,178.89,178.85,5.5912]
[1739834346172,38.65512175,178.9,178.85,5.5912]
[1739834347349,38.65512175,178.9,178.84,5.5915]
[1739834347350,10.75512175,178.89,178.84,5.5915]
[1739834347547,10.75512175,178.87,178.82,13.41184853]
[1739834347752,10.75512175,178.84,178.79,5.5931]
[1739834347952,10.75512175,178.83,178.79,5.5931]
[1739834348678,28.94851622,178.88,178.8,13.41184853]
[1739834348679,10.75512175,178.85,178.8,13.41184853]
[1739834348851,121.65512175,178.89,178.83,30.75512175]
[1739834349277,110.9,178.89,178.83,30.75512175]
[1739834349585,93.75512175,178.89,178.84,5.5915]
[1739834349767,83.0,178.89,178.84,16.34662175]
[1739834349973,93.75512175,178.89,178.84,5.5915]
[1739834350961,10.75512175,178.87,178.83,33.41184853]
[1739834351163,83.0,178.89,178.8,5.5925]
[1739834351164,10.75512175,178.85,178.8,5.5925]
[1739834351374,10.75512175,178.85,178.8,19.00434853]
[1739834351680,10.75512175,178.85,178.8,5.5925]
[1739834351975,38.65512175,178.88,178.83,13.41184853]
[1739834352187,27.9,178.88,178.83,10.75512175]
[1739834353975,27.9,178.88,178.84,5.5915]
[1739834354285,83.0,178.89,178.84,16.34662175]
[1739834354851,83.0,178.89,178.85,29.75807028]
[1739834355360,83.0,178.89,178.86,10.75512175]
[1739834355555,0.063,178.91,178.87,13.41184853]
[1739834355764,0.063,178.91,178.87,24.16697028]
[1739834356369,0.063,178.91,178.87,13.41184853]
[1739834356759,10.81812175,178.91,178.85,10.75512175]
[1739834357058,10.81812175,178.91,178.86,5.5908]
[1739834357453,10.75512175,178.9,178.85,25.5912]
[1739834357681,10.75512175,178.89,178.85,25.5912]
[1739834357882,10.75512175,178.89,178.83,10.75512175]
[1739834358092,10.75512175,178.88,178.82,16.34732175]
[1739834358705,10.75512175,178.88,178.83,13.41184853]
[1739834358910,10.75512175,178.87,178.83,13.41184853]
[1739834361109,27.9,178.88,178.83,24.16697028]
[1739834361414,27.9,178.88,178.83,29.75877028]
[1739834362184,27.9,178.88,178.84,10.75512175]
[1739834363089,27.9,178.88,178.85,5.5912]
[1739834363843,27.9,178.88,178.87,20.0]
[1739834363987,0.063,178.89,178.87,33.41184853]
[1739834365203,0.063,178.89,178.87,39.00244853]
[1739834367813,0.063,178.89,178.87,33.41184853]
[1739834368014,0.063,178.89,178.87,39.00234853]
[1739834370520,0.063,178.89,178.88,13.41184853]
[1739834371221,0.063,178.89,178.87,20.0]
[1739834371402,10.81812175,178.89,178.83,5.5919]
[1739834371593,10.75512175,178.87,178.83,5.5919]
[1739834371995,10.75512175,178.87,178.84,13.41184853]
[1739834372725,10.75512175,178.86,178.81,5.5925]
[1739834372890,10.75512175,178.86,178.82,13.41184853]
[1739834373327,38.65512175,178.86,178.82,13.41184853]
[1739834373818,38.65512175,178.86,178.82,19.00394853]
[1739834375730,27.9,178.86,178.82,29.75907028]
[1739834376912,27.9,178.86,178.82,19.00394853]
[1739834377301,10.75512175,178.85,178.82,13.41184853]
[1739834377508,10.75512175,178.85,178.82,20.0]
[1739834377700,38.65512175,178.86,178.82,20.0]
[1739834378019,38.65512175,178.86,178.82,25.5921]
[1739834378220,27.9,178.86,178.82,25.5921]
[1739834379495,38.65512175,178.86,178.82,25.5921]
[1739834383021,38.65512175,178.86,178.82,5.5921]
[1739834386122,27.9,178.86,178.82,5.5921]
[1739834387704,38.65512175,178.86,178.82,5.5921]
[1739834388639,27.9,178.86,178.83,24.16697028]
[1739834388999,27.9,178.86,178.83,13.41184853]
[1739834389205,39.76642836,178.87,178.83,13.41184853]
[1739834391911,39.76642836,178.87,178.83,19.00364853]
[1739834392113,38.71812175,178.87,178.83,19.00364853]
[1739834392312,27.963,178.87,178.83,19.00364853]
[1739834395036,0.063,178.87,178.83,19.00364853]
[1739834401120,27.963,178.87,178.83,19.00364853]
[1739834401340,38.71812175,178.87,178.83,19.00364853]
[1739834401740,27.963,178.87,178.83,19.00364853]
[1739834403420,38.71812175,178.87,178.82,19.00394853]
[1739834404651,27.963,178.87,178.82,19.00394853]
[1739834405145,27.963,178.87,178.82,29.75907028]
[1739834406452,10.75512175,178.86,178.79,0.42869483]
[1739834406749,10.75512175,178.85,178.79,16.34822175]
[1739834406942,27.9,178.85,178.83,13.41184853]
[1739834408851,38.65512175,178.85,178.83,13.41184853]
[1739834409360,39.70355096,178.84,178.78,0.03]
[1739834409525,10.75512175,178.81,178.78,0.03]
[1739834409725,10.75512175,178.82,178.78,13.44184853]
[1739834410751,10.75512175,178.82,178.78,19.03514853]
[1739834413057,38.65512175,178.82,178.78,19.03514853]
[1739834413657,27.9,178.82,178.78,19.03514853]
[1739834414858,10.75512175,178.79,178.78,0.03]
[1739834415524,11.8039542,178.79,178.78,0.03]
[1739834416463,17.3970542,178.79,178.78,0.03]
[1739834419862,11.8039542,178.79,178.78,0.03]
[1739834420074,27.9,178.8,178.78,10.78512175]
[1739834420235,27.9,178.8,178.79,10.75512175]
[1739834420434,27.9,178.8,178.79,24.16697028]
[1739834422077,27.9,178.8,178.79,13.41184853]
[1739834423558,27.9,178.8,178.79,19.00494853]
[1739834424158,27.9,178.8,178.79,29.76007028]
[1739834424369,32.08,178.8,178.79,29.76007028]
[1739834424766,4.18,178.8,178.79,29.76007028]
[1739834425957,27.9,178.86,178.8,13.41184853]
[1739834426165,27.9,178.86,178.84,13.41184853]
[1739834427465,27.9,178.86,178.83,13.41184853]
[1739834433852,27.9,178.86,178.83,19.00364853]
[1739834434053,27.9,178.86,178.83,13.41184853]
[1739834435477,27.9,178.86,178.83,19.00364853]
[1739834437286,27.9,178.86,178.83,13.41184853]
[1739834439755,27.9,178.86,178.83,19.00364853]
[1739834440858,27.9,178.86,178.83,29.75877028]
[1739834442677,27.9,178.86,178.83,13.41184853]
[1739834443451,27.9,178.86,178.83,19.00364853]
[1739834443900,27.9,178.86,178.83,13.41184853]
[1739834444982,27.963,178.86,178.83,13.41184853]
[1739834455289,27.963,178.86,178.82,24.16697028]
[1739834455467,27.963,178.86,178.84,13.41184853]
[1739834455668,27.963,178.86,178.85,10.75512175]
[1739834457386,27.963,178.86,178.85,13.41184853]
[1739834458275,27.963,178.86,178.84,13.41184853]
[1739834459994,27.963,178.86,178.84,19.00314853]
[1739834460288,27.963,178.86,178.85,10.75512175]
[1739834460491,0.063,178.86,178.85,10.75512175]
[1739834461895,0.063,178.86,178.85,29.75817028]
[1739834472707,0.063,178.86,178.85,31.75817028]
[1739834472708,0.0001,178.86,178.85,31.75817028]
[1739834473009,0.043,178.87,178.86,15.41184853]
[1739834473211,0.043,178.87,178.86,26.16697028]
[1739834474384,0.063,178.89,178.88,33.41184853]
[1739834474602,0.063,178.89,178.88,49.75727028]
[1739834481319,0.063,178.89,178.88,44.16697028]
[1739834481521,0.063,178.89,178.88,33.41184853]
[1739834482715,0.063,178.89,178.88,39.00214853]
[1739834483014,0.063,178.89,178.88,49.75727028]
[1739834487030,0.063,178.89,178.88,51.1850443]
[1739834490421,0.063,178.91,178.9,14.41184853]
[1739834490612,0.063,178.91,178.9,25.59445158]
[1739834490812,0.063,178.93,178.92,34.41184853]
[1739834491119,0.063,178.93,178.92,88.18745728]
[1739834491511,0.063,178.93,178.92,93.77645728]
[1739834491708,0.063,178.93,178.92,94.20367448]
[1739834492326,0.063,178.93,178.92,50.75597028]
[1739834493622,0.063,178.93,178.92,51.18324348]
[1739834495631,0.063,178.93,178.92,50.75597028]
[1739834495834,0.063,178.93,178.92,49.75597028]
[1739834496020,0.063,178.93,178.92,13.41184853]
[1739834496704,0.063,178.93,178.92,24.16697028]
[1739834497209,0.063,178.93,178.92,29.75597028]
[1739834498330,0.063,178.93,178.92,24.16697028]
[1739834499736,0.063,178.93,178.92,29.75597028]
[1739834500637,0.063,178.93,178.92,13.41184853]
[1739834505717,10.81812175,178.93,178.92,13.41184853]
[1739834506128,0.063,178.93,178.92,13.41184853]
[1739834511649,0.063,178.93,178.92,19.00084853]
[1739834511848,0.063,178.93,178.92,13.41184853]
[1739834517550,73.67750839,178.94,178.91,13.44184853]
[1739834518336,74.72544439,178.94,178.91,13.44184853]
[1739834518542,73.67750839,178.94,178.91,13.44184853]
[1739834522347,1.04798546,178.93,178.91,0.03]
[1739834522853,19.6,178.92,178.91,0.03]
[1739834528733,73.67750839,178.92,178.91,0.03]
[1739834529369,91.06969673,178.92,178.91,0.03]
[1739834532955,90.56969673,178.92,178.91,0.03]
[1739834534834,17.39218834,178.92,178.91,0.03]
[1739834538245,61.94137534,178.92,178.91,0.03]
[1739834538653,18.92088834,178.92,178.91,0.03]
[1739834539038,18.86197917,178.92,178.91,0.03]
[1739834540964,18.92497917,178.92,178.91,0.03]
[1739834548645,61.94546617,178.92,178.91,0.03]
[1739834553252,61.94546617,178.92,178.91,0.0001]
[1739834553446,61.94546617,178.92,178.87,0.03]
[1739834553646,10.75512175,178.88,178.87,0.03]
[1739834555358,16.34542175,178.88,178.87,0.03]
[1739834563855,17.33522078,178.88,178.87,0.03]
[1739834566279,19.60198673,178.88,178.87,0.03]
[1739834566492,33.57778673,178.88,178.78,13.44184853]
[1739834566784,10.75512175,178.8,178.78,0.03]
[1739834566984,19.1,178.79,178.78,0.03]
[1739834570378,83.0,178.79,178.78,0.03]
[1739834574893,83.0,178.79,178.78,10.78512175]
[1739834575573,0.03683379,178.8,178.79,13.41184853]
[1739834575894,0.03683379,178.8,178.79,24.16697028]
[1739834577475,0.03683379,178.8,178.79,29.76007028]
[1739834582075,0.03683379,178.8,178.79,24.16697028]
[1739834582382,0.03683379,178.8,178.79,13.41184853]
[1739834590798,0.03683379,178.8,178.79,19.00494853]
[1739834590987,0.03683379,178.8,178.79,29.76007028]
[1739834600110,0.03683379,178.8,178.79,29.79007028]
[1739834602598,3.379e-05,178.8,178.79,30.79007028]
[1739834602799,3.379e-05,178.8,178.79,37.23147028]
[1739834603200,18.60003379,178.85,178.83,20.0]
[1739834603408,4.16,178.84,178.83,33.41184853]
[1739834603715,18.20003379,178.86,178.84,13.41184853]
[1739834603910,18.20003379,178.86,178.84,24.16697028]
[1739834604511,18.20003379,178.86,178.84,29.75837028]
[1739834605301,18.20003379,178.86,178.84,19.00324853]
[1739834607620,18.20003379,178.86,178.84,18.50324853]
[1739834608313,18.20003379,178.86,178.84,29.25837028]
[1739834612002,18.20003379,178.86,178.84,18.50324853]
[1739834612396,18.20003379,178.86,178.82,30.75512175]
[1739834612622,18.20003379,178.86,178.83,13.41184853]
[1739834614931,18.20003379,178.86,178.83,19.00364853]
[1739834615137,18.20003379,178.85,178.83,19.00364853]
[1739834616835,19.24845059,178.85,178.8,10.75512175]
[1739834617128,19.24845059,178.85,178.8,16.34792175]
[1739834617317,35.59487234,178.85,178.81,13.41184853]
[1739834617535,30.00357234,178.85,178.8,19.00464853]
[1739834618931,19.24845059,178.85,178.8,29.75977028]
[1739834619142,19.24845059,178.85,178.82,13.41184853]
[1739834620304,19.24845059,178.85,178.81,13.41184853]
[1739834620809,111.95515554,178.84,178.79,0.03]
[1739834621009,102.24874035,178.83,178.79,0.03]
[1739834621432,102.24874035,178.83,178.79,13.44184853]
[1739834623511,102.24874035,178.83,178.79,5.6231]
[1739834623512,18.20003379,178.82,178.79,5.6231]
[1739834623716,18.20003379,178.82,178.79,16.37822175]
[1739834623916,18.20003379,178.82,178.79,10.78512175]
[1739834624135,18.20003379,178.82,178.79,13.44184853]
[1739834626039,18.20003379,178.82,178.79,19.03494853]
[1739834626444,18.20003379,178.82,178.79,13.44184853]
[1739834626817,18.20003379,178.81,178.79,24.19697028]
[1739834627017,18.20003379,178.81,178.79,29.78997028]
[1739834629659,18.20003379,178.81,178.79,29.28997028]
[1739834632940,18.20003379,178.8,178.79,29.28997028]
[1739834633139,18.20003379,178.82,178.79,29.28997028]
[1739834634819,18.20003379,178.82,178.79,29.31997028]
[1739834635151,4.16,178.81,178.79,29.31997028]
[1739834635824,83.0,178.83,178.82,20.0]
[1739834636018,83.0,178.83,178.82,44.16697028]
[1739834637948,83.0,178.83,178.82,49.75917028]
[1739834644550,83.0,178.83,178.82,19.00404853]
[1739834644757,101.20003379,178.82,178.8,5.5928]
[1739834644925,84.04867273,178.82,178.8,5.5928]
[1739834645325,18.20003379,178.81,178.79,19.03484853]
[1739834645632,101.20003379,178.8,178.79,0.03]
[1739834645830,84.04877782,178.8,178.79,0.03]
[1739834646641,83.0,178.8,178.79,0.03]
[1739834647856,84.04878957,178.8,178.79,0.03]
[1739834648028,83.0,178.8,178.79,0.03]
[1739834648740,83.0,178.8,178.79,24.19697028]
[1739834649828,0.063,178.83,178.79,24.19697028]
[1739834650131,0.063,178.83,178.82,24.16697028]
[1739834650337,18.763,178.83,178.82,24.16697028]
[1739834650855,18.763,178.83,178.82,29.75917028]
[1739834653655,0.063,178.83,178.82,29.75917028]
[1739834663762,0.063,178.83,178.82,73.77965728]
[1739834664071,0.063,178.83,178.82,30.75917028]
[1739834665639,0.063,178.83,178.82,73.77965728]
[1739834678276,0.063,178.83,178.82,30.75917028]
[1739834680875,0.063,178.83,178.82,73.77965728]
[1739834686866,0.0001,178.83,178.82,73.77965728]
[1739834687068,0.0001,178.83,178.82,74.77965728]
[1739834687274,0.0001,178.83,178.82,74.26685552]
[1739834687476,0.063,178.87,178.86,33.41184853]
[1739834687667,0.063,178.87,178.86,44.16697028]
[1739834687863,0.063,178.92,178.87,13.41184853]
[1739834688181,0.063,178.92,178.9,10.75512175]
[1739834688386,0.063,178.92,178.9,16.34482175]
[1739834689071,0.063,178.92,178.9,29.75667028]
[1739834689268,0.063,178.92,178.9,19.00154853]
[1739834689465,0.063,178.92,178.9,29.75667028]
[1739834691182,0.063,178.92,178.91,13.41184853]
[1739834691475,0.063,178.92,178.91,24.16697028]
[1739834693554,0.063,178.92,178.91,29.75637028]
[1739834704001,0.063,178.92,178.91,19.00124853]
[1739834713493,0.063,178.92,178.91,29.75637028]
[1739834720299,0.063,178.92,178.91,19.00124853]
[1739834721703,0.063,178.92,178.89,10.75512175]
[1739834721882,0.063,178.92,178.87,0.03]
[1739834721883,10.75512175,178.9,178.87,0.03]
[1739834722201,10.75512175,178.88,178.87,0.03]
[1739834722372,11.80347867,178.88,178.87,0.03]
[1739834722691,13.40117867,178.88,178.87,0.03]
[1739834722892,18.99147867,178.88,178.87,0.03]
[1739834726200,18.99147867,178.88,178.79,13.44184853]
[1739834726386,10.75512175,178.83,178.79,13.44184853]
[1739834726808,1.04862463,178.82,178.79,0.03]
[1739834726976,1.5418,178.81,178.79,0.03]
[1739834727380,1.04874178,178.8,178.79,0.03]
[1739834727884,11.80386353,178.8,178.79,0.03]
[1739834728401,94.80386353,178.8,178.79,0.03]
[1739834728598,11.80386353,178.8,178.79,0.03]
[1739834728788,17.39666353,178.8,178.79,0.03]
[1739834732402,17.39666353,178.8,178.78,0.03]
[1739834732603,10.75512175,178.79,178.78,0.03]
[1739834732809,16.34822175,178.79,178.7,13.41184853]
[1739834733014,10.75512175,178.74,178.7,13.41184853]
[1739834733509,10.75512175,178.75,178.7,13.41184853]
[1739834733684,1.04914693,178.74,178.7,13.41184853]
[1739834733883,1.04914693,178.74,178.7,19.00774853]
[1739834736118,0.91876056,178.74,178.7,19.00774853]
[1739834736813,18.7,178.73,178.7,19.00774853]
[1739834738999,18.5721858,178.73,178.7,19.00774853]
[1739834742814,18.5721858,178.73,178.69,0.03]
[1739834742815,113.01697128,178.72,178.69,0.03]
[1739834743125,10.75512175,178.7,178.69,0.03]
[1739834743423,11.80455431,178.7,178.69,0.03]
[1739834743926,11.67154193,178.7,178.69,0.03]
[1739834744303,16.21800937,178.7,178.69,0.03]
[1739834745324,17.26751125,178.7,178.69,0.03]
[1739834745522,11.67161125,178.7,178.69,0.03]
[1739834746230,11.80462363,178.7,178.69,0.03]
[1739834753729,1.04950188,178.7,178.69,0.03]
[1739834754022,1.6427,178.74,178.69,0.03]
[1739834754023,10.75512175,178.71,178.69,0.03]
[1739834754222,1.04936924,178.7,178.69,0.03]
[1739834755328,10.75512175,178.72,178.69,0.03]
[1739834755524,1.04932116,178.71,178.69,0.03]
[1739834755916,11.80444291,178.71,178.69,0.03]
[1739834760633,18.4,178.7,178.69,0.03]
[1739834763740,29.15512175,178.7,178.69,0.03]
[1739834764336,29.21812175,178.7,178.69,0.03]
[1739834766532,10.81812175,178.7,178.69,0.03]
[1739834768142,11.86750635,178.7,178.69,0.03]
[1739834769037,10.81812175,178.7,178.69,0.03]
[1739834770120,16.41402175,178.7,178.69,0.03]
[1739834774722,25.03322175,178.7,178.69,0.0001]
[1739834775123,1.0,178.69,178.65,0.03]
[1739834775351,10.75512175,178.66,178.65,0.03]
[1739834775550,11.8050191,178.66,178.65,0.03]
[1739834776350,17.4022191,178.66,178.65,0.03]
[1739834776528,60.4227061,178.66,178.65,0.03]
[1739834777228,219.5,178.65,178.61,0.03]
[1739834777451,10.75512175,178.62,178.61,0.03]
[1739834777749,10.75512175,178.55,178.51,0.03]
[1739834778049,19.45038347,178.54,178.51,0.03]
[1739834778433,30.20550522,178.54,178.51,0.03]
[1739834779250,112.15512175,178.53,178.51,0.03]
[1739834779452,112.15512175,178.53,178.49,8.2712859]
[1739834779650,11.80564434,178.52,178.49,8.2712859]
[1739834780348,11.80564434,178.52,178.48,13.41184853]
[1739834780532,18.4,178.51,178.48,13.41184853]
[1739834781229,1.05053405,178.5,178.48,13.41184853]
[1739834781429,1.05053405,178.5,178.47,13.41184853]
[1739834781629,1.05053405,178.5,178.48,5.6028]
[1739834781935,29.15512175,178.51,178.48,5.6028]
[1739834782150,18.4,178.51,178.48,5.6028]
[1739834783140,1.05052715,178.5,178.48,5.6028]
[1739834783857,19.45054411,178.51,178.48,5.6028]
[1739834784329,18.4,178.51,178.49,13.41184853]
[1739834784534,18.4,178.51,178.49,24.16697028]
[1739834785058,18.4,178.51,178.49,13.41184853]
[1739834785861,18.4,178.51,178.5,5.6022]
[1739834786055,18.4,178.51,178.5,19.01404853]
[1739834786634,18.4,178.51,178.5,29.76917028]
[1739834787054,101.4,178.57,178.51,13.41184853]
[1739834787363,18.4,178.57,178.55,24.16697028]
[1739834787586,10.75512175,178.6,178.55,24.16697028]
[1739834787587,1.05003311,178.6,178.55,24.16697028]
[1739834787859,18.4,178.59,178.57,29.76697028]
[1739834788035,18.4,178.59,178.58,24.16697028]
[1739834788239,18.4,178.6,178.58,24.16697028]
[1739834789764,18.4,178.6,178.58,29.76647028]
[1739834789945,18.4,178.6,178.58,19.01134853]
[1739834790871,18.4,178.6,178.58,29.76647028]
[1739834792561,18.4,178.6,178.59,13.41184853]
[1739834792735,18.4,178.6,178.59,24.16697028]
[1739834793356,0.063,178.61,178.59,24.16697028]
[1739834793540,0.063,178.61,178.6,24.16697028]
[1739834794158,0.063,178.61,178.6,29.76607028]
[1739834794377,0.063,178.61,178.6,19.01094853]
[1739834795048,0.063,178.61,178.6,29.76607028]
[1739834807770,0.0001,178.61,178.6,29.76607028]
[1739834807963,0.0001,178.61,178.6,30.38632779]
[1739834809581,0.0001,178.61,178.6,29.76607028]
[1739834812586,0.0001,178.61,178.6,29.79607028]
[1739834814287,0.0001,178.61,178.6,13.44184853]
[1739834815492,10.75522175,178.61,178.6,0.03]
[1739834816070,0.0001,178.61,178.6,0.03]
[1739834816287,1.05003505,178.61,178.6,0.03]
[1739834816500,0.0001,178.61,178.6,13.44184853]
[1739834816992,0.0001,178.61,178.6,0.03]
[1739834818588,10.75522175,178.61,178.6,0.03]
[1739834819394,16.35392175,178.61,178.6,0.03]
[1739834819583,17.40399953,178.61,178.6,0.03]
[1739834824299,16.35392175,178.61,178.6,0.03]
[1739834824594,5.5988,178.61,178.6,0.03]
[1739834824790,16.35392175,178.61,178.6,0.03]
[1739834828195,10.75522175,178.61,178.6,0.03]
[1739834828400,11.80525645,178.61,178.6,0.03]
[1739834828804,17.40395645,178.61,178.6,0.03]
[1739834838594,11.80525645,178.61,178.6,0.03]
[1739834838780,10.75522175,178.61,178.6,0.03]
[1739834839302,0.0001,178.61,178.6,0.03]
[1739834844101,10.75522175,178.61,178.6,0.03]
[1739834845698,16.35392175,178.61,178.6,0.03]
[1739834845912,17.40391862,178.61,178.6,0.03]
[1739834846785,16.35392175,178.61,178.6,0.03]
[1739834850291,17.40422422,178.61,178.6,0.03]
[1739834855208,16.35392175,178.61,178.6,0.03]
[1739834884538,10.75522175,178.61,178.6,0.03]
[1739834886660,17.40392681,178.61,178.6,0.03]
[1739834900643,17.40392681,178.61,178.55,10.75512175]
[1739834900843,10.75512175,178.59,178.52,10.75512175]
[1739834901054,10.75512175,178.57,178.51,10.75512175]
[1739834901253,10.75512175,178.55,178.49,24.36822175]
[1739834901466,102.45034517,178.54,178.49,24.36822175]
[1739834902356,102.45034517,178.54,178.5,16.35722175]
[1739834902674,101.4,178.54,178.5,16.35722175]